lending/lending_fUSD_20251015
["ID","MTS","AMOUNT","RATE_DAILY","PERIOD"]
[391309428,1760501433635,-500.0,0.00014899,2]
[391309429,1760501433645,-250.0,0.00014899,2]
[391309430,1760501433654,-500.0,0.00014899,2]
[391309431,1760501433663,-500.0,0.00014899,2]
[391309432,1760501433672,-500.0,0.00014899,2]
[391309433,1760501433681,-250.0,0.00014899,2]
[391309434,1760501433690,-500.0,0.00014899,2]
[391309435,1760501433699,-500.0,0.00014899,2]
[391309436,1760501433708,-500.0,0.00014899,2]
[391309437,1760501433716,-500.0,0.00014899,2]
[391309438,1760501433725,-250.0,0.00014899,2]
[391309439,1760501433735,-500.0,0.00014899,2]
[391309440,1760501433744,-500.0,0.00014899,2]
[391309441,1760501433752,-500.0,0.00014899,2]
[391309442,1760501433761,-500.0,0.00014899,2]
[391309443,1760501433770,-500.0,0.00014899,2]
[391309444,1760501433779,-250.0,0.00014899,2]
[391309445,1760501433788,-500.0,0.00014899,2]
[391309446,1760501433797,-500.0,0.00014899,2]
[391309447,1760501433806,-500.0,0.00014899,2]
[391309448,1760501433815,-500.0,0.00014899,2]
[391309449,1760501433824,-500.0,0.00014899,2]
[391309450,1760501433833,-200.0,0.00014899,2]
[391309451,1760501433843,-2181.77,0.00014899,2]
[391309452,1760501433852,-1760.0,0.000149,2]
[391309453,1760501433861,-161014.18023443,0.000149,2]
[391309454,1760501433903,-21970.6506641,0.000149,2]
[391309455,1760501433915,-9480.79390147,0.000149,2]
[391309456,1760501433924,-74129.23747757,0.000149,2]
[391309457,1760501433932,-929462.68007372,0.000149,2]
[391309458,1760501438204,-278.29072589,0.00014789,2]
[391309482,1760501440055,-6164.70927411,0.00014789,2]
[391309483,1760501440065,-192.08414004,0.0001489,2]
[391309484,1760501440075,-51401.59846194,0.000149,2]
[391309485,1760501440267,-38615.12491788,0.000149,2]
[391309486,1760501440276,-199.5144069,0.000149,2]
[391309487,1760501440286,-1287.12065768,0.000149,2]
[391309488,1760501440295,-176.088565,0.000149,2]
[391309489,1760501440305,-167.49817597,0.000149,2]
[391309490,1760501440314,-301.0,0.00014941,2]
[391309491,1760501440324,-168.0,0.00014961,2]
[391309492,1760501440333,-500.0,0.00014973,2]
[391309493,1760501440342,-500.0,0.00014973,2]
[391309494,1760501440351,-500.0,0.00014973,2]
[391309495,1760501440360,-500.0,0.00014973,2]
[391309496,1760501440369,-500.0,0.00014973,2]
[391309497,1760501440382,-500.0,0.00014973,2]
[391309498,1760501440392,-501.3582503,0.00014973,2]
[391309499,1760501440401,-502.28864495,0.00014973,2]
[391309500,1760501440410,-501.92885689,0.00014973,2]
[391309501,1760501440419,-500.0,0.00014973,2]
[391309502,1760501440428,-271.40570791,0.00014973,2]
[391309503,1760501440437,-502.1355544,0.00014973,2]
[391309504,1760501440447,-500.0,0.00014973,2]
[391309505,1760501440456,-500.0,0.00014973,2]
[391309506,1760501440466,-503.3882961,0.00014973,2]
[391309507,1760501440475,-500.0,0.00014973,2]
[391309508,1760501440484,-428.0,0.00014987,2]
[391309509,1760501440493,-500.0,0.00014987,2]
[391309510,1760501440502,-164.49786615,0.00014987,2]
[391309511,1760501440511,-150.0,0.00014987,2]
[391309512,1760501440520,-150.0,0.00014987,2]
[391309513,1760501440530,-150.0,0.00014987,2]
[391309514,1760501440539,-150.0,0.00014987,2]
[391309515,1760501440548,-150.0,0.00014987,2]
[391309516,1760501440557,-150.0,0.00014987,2]
[391309517,1760501440566,-150.0,0.00014987,2]
[391309518,1760501440579,-150.0,0.00014987,2]
[391309519,1760501440588,-150.0,0.00014987,2]
[391309520,1760501440597,-150.0,0.00014987,2]
[391309521,1760501440626,-150.0,0.00014987,2]
[391309522,1760501440648,-150.0,0.00014987,2]
[391309523,1760501440669,-150.0,0.00014987,2]
[391309524,1760501440690,-150.0,0.00014987,2]
[391309525,1760501440710,-1000.0,0.00014988,2]
[391309526,1760501440728,-301.0,0.00014989,2]
[391309527,1760501440751,-192.08414004,0.0001499,2]
[391309528,1760501440771,-207.0,0.00014992,2]
[391309529,1760501440793,-150.0,0.00014992,2]
[391309530,1760501440813,-200.0,0.00014992,2]
[391309531,1760501440842,-202.86,0.00014992,2]
[391309532,1760501440866,-266.896,0.00014992,2]
[391309533,1760501440881,-151.008,0.00014992,2]
[391309534,1760501440903,-250.0,0.00014992,2]
[391309535,1760501440920,-150.069,0.00014992,2]
[391309536,1760501440946,-249.054,0.00014992,2]
[391309537,1760501440960,-254.981,0.00014992,2]
[391309538,1760501441017,-188.03,0.00014992,2]
[391309539,1760501441040,-161.466,0.00014992,2]
[391309540,1760501441063,-207.719,0.00014992,2]
[391309541,1760501441084,-208.893,0.00014992,2]
[391309542,1760501441107,-250.0,0.00014992,2]
[391309543,1760501441127,-216.922,0.00014992,2]
[391309544,1760501441149,-213.139,0.00014992,2]
[391309545,1760501441168,-3407.0,0.00014992,2]
[391309546,1760501441186,-2049.0,0.00014992,2]
[391309547,1760501441206,-749.0,0.00014992,2]
[391309548,1760501441224,-1267.0,0.00014992,2]
[391309549,1760501441242,-1309.0,0.00014992,2]
[391309550,1760501441259,-571.0,0.00014992,2]
[391309551,1760501441280,-1546.0,0.00014992,2]
[391309552,1760501441297,-604.0,0.00014992,2]
[391309553,1760501441315,-500.0,0.00014992,2]
[391309554,1760501441332,-500.0,0.00014992,2]
[391309555,1760501441349,-500.0,0.00014992,2]
[391309556,1760501441366,-500.0,0.00014992,2]
[391309557,1760501441382,-500.0,0.00014992,2]
[391309558,1760501441398,-570.0,0.00014992,2]
[391309559,1760501441413,-500.0,0.00014992,2]
[391309560,1760501441430,-151.0,0.00014996,2]
[391309561,1760501441449,-300.0,0.00014997,2]
[391309562,1760501441465,-151.0,0.00014997,2]
[391309563,1760501441480,-150.0,0.00014998,2]
[391309564,1760501441495,-155.533,0.00014998,2]
[391309565,1760501441511,-277764.8328872,0.00014999,2]
[391309566,1760501441526,-551.2857202,0.00014999,2]
[391309567,1760501441541,-3154.1915215,0.00014999,2]
[391309568,1760501441556,-209845.1592719,0.00014999,2]
[391309569,1760501441571,-150.2588172,0.00014999,2]
[391309570,1760501441585,-3134.7826493,0.00014999,2]
[391309571,1760501441600,-544819.12522131,0.00015,2]
[391309653,1760501444108,-300.0,0.00014996,2]
[391309655,1760501444117,-6315.10245178,0.00015,2]
[391309762,1760501446415,-352.17713,0.000147,2]
[391309764,1760501588657,3210.0,0.00030402,60]
[391309765,1760501605558,13.5626,6.94e-05,2]
[391309766,1760501605581,147.4274,6.94e-05,2]
[391309767,1760501605622,160.99,8.328e-05,2]
[391309768,1760501605659,160.99,9.716e-05,2]
[391309769,1760501605694,130.33623431,0.00011104,2]
[391309770,1760501605718,30.65376569,0.00011104,2]
[391309771,1760501605754,160.99,0.00012492,2]
[391309772,1760501700785,9000.0,0.00030402,60]
[391309781,1760502276333,500.0,0.00030376,120]
[391309782,1760502292226,151.0,0.00030376,60]
[391309784,1760502340273,1871.0,0.00027397,120]
[391309810,1760502511984,327.0,0.000272,120]
[391309811,1760502518832,15000.0,0.00012535,2]
[391309812,1760502518853,5576.70803547,0.00012535,2]
[391309825,1760502632193,-500.0,0.00013082,2]
[391309827,1760502632203,-101.89858971,0.00013356,2]
[391309829,1760502632216,-398.10141029,0.00013356,2]
[391309832,1760502632226,-1000.0,0.00013356,2]
[391309833,1760502632236,-279.0,0.00013562,2]
[391309834,1760502632246,-933.46,0.00013568,2]
[391309835,1760502632255,-1200.0,0.00013661,2]
[391309836,1760502632264,-103.74995247,0.00013662,2]
[391309837,1760502632276,-2647.25004753,0.00013662,2]
[391309838,1760502632285,-840.12,0.000137,2]
[391309839,1760502632294,-300.0,0.00013732,2]
[391309840,1760502632303,-1200.0,0.00013733,2]
[391309841,1760502632312,-500.0,0.00013734,2]
[391309842,1760502632321,-892.62995259,0.00013734,2]
[391309843,1760502632340,-607.37004741,0.00013734,2]
[391309844,1760502632349,-892.5,0.00013793,2]
[391309845,1760502632358,-160.99,0.00013881,2]
[391309846,1760502632366,-150.0,0.00014189,2]
[391309847,1760502632375,-150.0,0.00014248,2]
[391309848,1760502632385,-9552.16786547,0.00014249,2]
[391309849,1760502632394,-151.0,0.00014249,2]
[391309850,1760502632403,-668.65185757,0.00014249,2]
[391309851,1760502632413,-277.35679052,0.00014249,2]
[391309852,1760502632423,-9905.5980765,0.00014304,2]
[391309853,1760502632432,-437.0,0.00014344,2]
[391309854,1760502632441,-10272.10520533,0.00014359,2]
[391309855,1760502632450,-322.6107,0.00014382,2]
[391309856,1760502632459,-300.0,0.0001439,2]
[391309857,1760502632468,-300.0,0.0001439,2]
[391309858,1760502632477,-300.0,0.0001439,2]
[391309859,1760502632486,-151.14491002,0.0001439,4]
[391309860,1760502632497,-2500.0,0.0001439,2]
[391309861,1760502632507,-2563.51508623,0.0001439,2]
[391309862,1760502632516,-300.0,0.0001439,2]
[391309863,1760502632526,-300.0,0.0001439,2]
[391309864,1760502632535,-300.0,0.0001439,2]
[391309865,1760502632544,-1822.98920065,0.0001439,2]
[391309866,1760502632559,-677.01079935,0.0001439,2]
[391309867,1760502632568,-613.05090846,0.0001439,2]
[391309868,1760502632579,-1886.94909154,0.0001439,2]
[391309869,1760502632589,-2500.0,0.0001439,2]
[391309870,1760502632598,-250.0,0.0001439,2]
[391309871,1760502632607,-437.0,0.00014402,2]
[391309872,1760502632616,-10652.17309792,0.00014414,2]
[391309873,1760502632625,-437.0,0.0001442,2]
[391309874,1760502632634,-500.0,0.00014452,2]
[391309875,1760502632643,-11046.30350255,0.00014469,2]
[391309876,1760502632652,-11455.01673214,0.00014524,2]
[391309877,1760502632661,-437.0,0.00014528,2]
[391309879,1760502632671,-9211.34798985,0.00014579,2]
[391309881,1760502632680,-437.0,0.00014623,2]
[391309883,1760502632690,-437.0,0.00014634,2]
[391309886,1760502632700,-500.0,0.00014658,2]
[391309887,1760502632709,-353.0,0.000147,2]
[391309890,1760502632719,-672.68467833,0.000147,2]
[391309892,1760502632728,-1149.57909039,0.000147,2]
[391309894,1760502632738,-1133.24141314,0.000147,2]
[391309896,1760502632748,-1132.79933602,0.000147,2]
[391309899,1760502632757,-1116.66557651,0.000147,2]
[391309901,1760502632767,-1018.67849723,0.000147,2]
[391309903,1760502632777,-1010.07052187,0.000147,2]
[391309905,1760502632787,-1006.00682735,0.000147,2]
[391309907,1760502632796,-1000.0,0.00014726,2]
[391309909,1760502632806,-200.0,0.00014758,2]
[391309911,1760502632815,-272.96538252,0.0001476,2]
[391309913,1760502632824,-353.0,0.00014766,2]
[391309915,1760502632833,-353.0,0.00014786,2]
[391309916,1760502632842,-1000.0,0.00014848,2]
[391309918,1760502632851,-200.0,0.0001488,2]
[391309920,1760502632861,-163.6841978,0.0001489,2]
[391309923,1760502632870,-5000.0,0.00014899,2]
[391309925,1760502632880,-1000.0,0.000149,2]
[391309927,1760502632890,-1010.0,0.000149,2]
[391309929,1760502632899,-1000.0,0.000149,2]
[391309931,1760502632908,-1000.0,0.000149,2]
[391309933,1760502632917,-553.6040352,0.000149,2]
[391309935,1760502632927,-163.68419779,0.000149,2]
[391309937,1760502632935,-805.35885242,0.000149,2]
[391309938,1760502632945,-2488.933,0.00014909,2]
[391309939,1760502632954,-200.375,0.00014909,2]
[391309940,1760502632963,-353.0,0.00014945,2]
[391309941,1760502632973,-500.0,0.00014973,2]
[391309942,1760502632982,-500.0,0.00014973,2]
[391309943,1760502632992,-500.0,0.00014973,2]
[391309944,1760502633002,-500.0,0.00014973,2]
[391309945,1760502633011,-500.0,0.00014973,2]
[391309946,1760502633020,-500.0,0.00014973,2]
[391309947,1760502633029,-503.43410253,0.00014973,2]
[391309948,1760502633039,-150.0,0.00014987,2]
[391309949,1760502633048,-500.0,0.00014987,2]
[391309951,1760502633057,-150.0,0.00014987,2]
[391309952,1760502633067,-150.0,0.00014987,2]
[391309954,1760502633075,-150.0,0.00014987,2]
[391309956,1760502633085,-150.0,0.00014987,2]
[391309958,1760502633094,-150.0,0.00014987,2]
[391309960,1760502633103,-150.0,0.00014987,2]
[391309962,1760502633112,-150.0,0.00014987,2]
[391309965,1760502633122,-153.84863174,0.00014987,2]
[391309966,1760502633131,-250.0,0.00014987,2]
[391309969,1760502633141,-150.0,0.00014987,2]
[391309971,1760502633150,-150.0,0.00014987,2]
[391309973,1760502633160,-500.0,0.00014987,2]
[391309975,1760502633169,-150.0,0.00014987,2]
[391309977,1760502633179,-150.0,0.00014987,2]
[391309979,1760502633187,-150.0,0.00014987,2]
[391309981,1760502633197,-2090.86,0.00014989,2]
[391309983,1760502633206,-299.85480577,0.00014989,2]
[391309985,1760502633215,-500.0,0.00014989,2]
[391309987,1760502633224,-500.0,0.00014989,2]
[391309989,1760502633233,-268.53940013,0.00014989,2]
[391309991,1760502633242,-578.69265389,0.00014989,2]
[391309993,1760502633252,-500.0,0.00014989,2]
[391309995,1760502633261,-500.0,0.00014989,2]
[391309997,1760502633270,-253.14878202,0.00014989,2]
[391309998,1760502633279,-500.0,0.00014989,2]
[391309999,1760502633289,-500.0,0.00014989,2]
[391310000,1760502633298,-500.0,0.00014989,2]
[391310002,1760502633308,-500.0,0.00014989,2]
[391310003,1760502633317,-500.0,0.00014989,2]
[391310004,1760502633329,-500.0,0.00014989,2]
[391310005,1760502633338,-500.0,0.00014989,2]
[391310006,1760502633347,-500.0,0.00014989,2]
[391310007,1760502633357,-500.0,0.00014989,2]
[391310008,1760502633367,-500.0,0.00014989,2]
[391310009,1760502633376,-500.0,0.00014989,2]
[391310010,1760502633386,-500.0,0.00014989,2]
[391310011,1760502633395,-500.0,0.00014989,2]
[391310012,1760502633406,-309.86118041,0.00014989,2]
[391310013,1760502633415,-500.0,0.00014989,2]
[391310014,1760502633424,-500.0,0.00014989,2]
[391310015,1760502633433,-500.0,0.00014989,2]
[391310016,1760502633443,-500.0,0.00014989,2]
[391310017,1760502633452,-500.0,0.00014989,2]
[391310018,1760502633461,-500.0,0.00014989,2]
[391310019,1760502633470,-500.0,0.00014989,2]
[391310020,1760502633480,-500.0,0.00014989,2]
[391310021,1760502633489,-500.0,0.00014989,2]
[391310022,1760502633499,-500.0,0.00014989,2]
[391310023,1760502633509,-500.0,0.00014989,2]
[391310024,1760502633518,-500.0,0.00014989,2]
[391310025,1760502633527,-500.0,0.00014989,2]
[391310026,1760502633536,-500.0,0.00014989,2]
[391310027,1760502633546,-500.0,0.00014989,2]
[391310028,1760502633555,-43576.20845863,0.0001499,2]
[391310029,1760502633568,-1702.70154033,0.0001499,2]
[391310030,1760502633579,-1223.29132686,0.0001499,2]
[391310031,1760502633590,-294.84302077,0.0001499,2]
[391310032,1760502633601,-1734.97613003,0.0001499,2]
[391310033,1760502633612,-1902.73691266,0.0001499,2]
[391310034,1760502633627,-1133.93352267,0.0001499,2]
[391310035,1760502638095,-500.0,0.00014987,2]
[391310036,1760502638104,-43326.37470663,0.0001499,2]
[391310037,1760502638154,-470.79552043,0.0001499,2]
[391310044,1760502640180,-437.9150026,0.0001499,2]
[391310045,1760502640400,-4599.0638606,0.0001499,2]
[391310046,1760502640412,-149597.15999779,0.0001499,2]
[391310047,1760502640422,-250000.0,0.0001499,2]
[391310048,1760502640431,-1309.0,0.00014992,2]
[391310049,1760502640440,-604.0,0.00014992,2]
[391310050,1760502640449,-1546.0,0.00014992,2]
[391310051,1760502640459,-571.0,0.00014992,2]
[391310052,1760502640468,-816.0,0.00014992,2]
[391310053,1760502640477,-1182.0,0.00014992,2]
[391310054,1760502640486,-902.0,0.00014992,2]
[391310055,1760502640495,-2545.0,0.00014992,2]
[391310056,1760502640505,-749.0,0.00014992,2]
[391310057,1760502640514,-1267.0,0.00014992,2]
[391310058,1760502640523,-773.0,0.00014992,2]
[391310059,1760502640532,-4014.0,0.00014992,2]
[391310060,1760502640541,-103730.0208966,0.00014999,2]
[391310061,1760502640551,-150.2588172,0.00014999,2]
[391310062,1760502640560,-962.1456187,0.00014999,2]
[391310063,1760502640569,-27386.58135752,0.00014999,2]
[391310064,1760502640585,-32167.02250028,0.00014999,2]
[391310065,1760502640594,-860.8332082,0.00014999,2]
[391310066,1760502640603,-1403.0,0.00015,2]
[391310067,1760502640612,-69995.13271024,0.00015,2]
[391310074,1760502643363,-200.0,0.00014987,2]
[391310075,1760502643373,-253.0,0.00014992,2]
[391310076,1760502643384,-471.6131243,0.00014992,2]
[391310091,1760502647332,-2682.3868757,0.00014992,2]
[391310092,1760502647342,-4192.44329896,0.00015,2]
[391310093,1760502647358,-4921.78675292,0.00015,2]
[391310094,1760502647375,-302.0,0.00015,2]
[391310095,1760502647389,-9147.25965807,0.00015,2]
[391310096,1760502647400,-38375.46988838,0.00015,2]
[391310097,1760502647411,-6633.69571503,0.00015,2]
[391310098,1760502710268,200000.0,0.00027397,120]
[391310099,1760502848496,446.54901912,0.00030376,120]
[391310100,1760502861760,500.0,0.00030376,60]
[391310102,1760502914882,500.41,0.00012754,2]
[391310107,1760503058606,1466.99,0.00027397,120]
[391310108,1760503071286,733.49,0.00027397,120]
[391310109,1760503093899,1833.73,0.00027397,120]
[391310110,1760503099981,1833.73,0.00027397,120]
[391310113,1760503132294,739.0,0.00027397,120]
[391310114,1760503144058,369.5,0.00027397,120]
[391310115,1760503170712,184.75,0.00027397,120]
[391310116,1760503179206,434.75,0.00027397,120]
[391310117,1760503229839,500.0,0.00027397,120]
[391310118,1760503230024,500.0,0.00027397,120]
[391310119,1760503230184,500.0,0.00027397,120]
[391310120,1760503230480,500.0,0.00027397,120]
[391310121,1760503230738,500.0,0.00027397,120]
[391310122,1760503230928,500.0,0.00027397,120]
[391310123,1760503231074,500.0,0.00027397,120]
[391310124,1760503231325,500.0,0.00027397,120]
[391310125,1760503231520,500.0,0.00027397,120]
[391310126,1760503231699,500.0,0.00027397,120]
[391310127,1760503231866,500.0,0.00027397,120]
[391310128,1760503232050,500.0,0.00027397,120]
[391310129,1760503232233,500.0,0.00027397,120]
[391310130,1760503232406,500.0,0.00027397,120]
[391310131,1760503232578,500.0,0.00027397,120]
[391310132,1760503232749,500.0,0.00027397,120]
[391310133,1760503232917,500.0,0.00027397,120]
[391310134,1760503233158,500.0,0.00027397,120]
[391310135,1760503233318,362.27816831,0.00027397,120]
[391310136,1760503296138,4798.165,0.00027397,120]
[391310138,1760503558469,17607.0,0.00027397,120]
[391310152,1760503831323,-500.0,0.00013082,2]
[391310153,1760503831333,-163.68745285,0.00013107,2]
[391310154,1760503831342,-596.63415547,0.00013144,2]
[391310155,1760503831354,-586.4,0.00013144,2]
[391310156,1760503831366,-465.9953285,0.00013144,2]
[391310157,1760503831378,-350.97051603,0.00013144,2]
[391310158,1760503831387,-174.92466219,0.00013207,2]
[391310159,1760503831396,-1200.0,0.00013275,2]
[391310160,1760503831406,-2000.0,0.00013276,2]
[391310161,1760503831415,-852.87436368,0.00013276,2]
[391310162,1760503831425,-1200.0,0.00013355,2]
[391310163,1760503831434,-300.0,0.00013355,2]
[391310164,1760503831443,-300.0,0.00013355,2]
[391310165,1760503831453,-300.0,0.00013355,2]
[391310166,1760503831462,-500.0,0.00013356,2]
[391310167,1760503831471,-900.0,0.00013356,2]
[391310168,1760503831480,-2975.55,0.00013596,2]
[391310169,1760503831490,-1600.0,0.00013597,2]
[391310170,1760503831501,-430.96,0.00013633,2]
[391310171,1760503831511,-7501.92629357,0.00013655,2]
[391310172,1760503831520,-200.0,0.00013699,2]
[391310173,1760503831529,-544.96,0.00013699,2]
[391310174,1760503831538,-196.56,0.00013723,2]
[391310175,1760503831547,-150.0,0.00013724,2]
[391310176,1760503831557,-610.0,0.00013745,2]
[391310177,1760503831566,-250.0,0.00013767,2]
[391310178,1760503831575,-166.66,0.00013955,2]
[391310179,1760503831584,-6983.15310159,0.00014,2]
[391310180,1760503831594,-150.0,0.0001424,2]
[391310181,1760503831602,-200.0,0.00014241,2]
[391310183,1760503831611,-151.0,0.00014241,2]
[391310185,1760503831620,-151.0,0.00014241,2]
[391310186,1760503831629,-151.0,0.00014241,2]
[391310187,1760503831637,-151.0,0.00014241,2]
[391310188,1760503831646,-151.0,0.00014241,2]
[391310189,1760503831655,-151.0,0.00014241,2]
[391310190,1760503831664,-151.0,0.00014241,2]
[391310191,1760503831673,-151.0,0.00014241,2]
[391310192,1760503831682,-151.0,0.00014241,2]
[391310193,1760503831691,-151.0,0.00014241,2]
[391310194,1760503831700,-151.0,0.00014241,2]
[391310195,1760503831709,-151.0,0.00014241,2]
[391310196,1760503831718,-151.0,0.00014241,2]
[391310197,1760503831727,-151.0,0.00014241,2]
[391310198,1760503831736,-151.0,0.00014241,2]
[391310199,1760503831745,-151.0,0.00014241,2]
[391310200,1760503831756,-151.0,0.00014241,2]
[391310201,1760503831765,-151.0,0.00014241,2]
[391310202,1760503831774,-151.0,0.00014241,2]
[391310203,1760503831783,-151.0,0.00014241,2]
[391310204,1760503831794,-151.0,0.00014241,2]
[391310205,1760503831803,-151.0,0.00014241,2]
[391310206,1760503831811,-151.0,0.00014241,2]
[391310207,1760503831821,-151.0,0.00014241,2]
[391310208,1760503831830,-151.0,0.00014241,2]
[391310209,1760503831839,-182.74839534,0.00014241,2]
[391310210,1760503831848,-200.0,0.00014241,2]
[391310211,1760503831857,-166.66,0.00014249,2]
[391310212,1760503831866,-322.6107,0.00014249,2]
[391310213,1760503831875,-220.0,0.00014249,2]
[391310214,1760503831884,-220.0,0.00014249,2]
[391310215,1760503831893,-220.0,0.00014249,2]
[391310216,1760503831902,-220.0,0.00014249,2]
[391310217,1760503831911,-220.0,0.00014249,2]
[391310218,1760503831921,-220.0,0.00014249,2]
[391310219,1760503831930,-220.0,0.00014249,2]
[391310220,1760503831939,-419.08190151,0.00014249,2]
[391310221,1760503831950,-695.39793187,0.00014249,2]
[391310222,1760503831959,-1000.0,0.00014249,2]
[391310223,1760503831969,-220.0,0.00014249,2]
[391310224,1760503831978,-9552.16786547,0.00014249,2]
[391310225,1760503831987,-1000.0,0.00014249,2]
[391310226,1760503831996,-236.85033637,0.00014249,2]
[391310227,1760503832007,-1000.0,0.00014249,2]
[391310228,1760503832016,-1000.0,0.00014249,2]
[391310229,1760503832025,-500.0,0.00014249,2]
[391310230,1760503832034,-1000.0,0.00014249,2]
[391310231,1760503832043,-500.0,0.00014249,2]
[391310232,1760503832052,-1000.0,0.00014249,2]
[391310233,1760503832061,-371.09941357,0.00014249,2]
[391310234,1760503832070,-1000.0,0.00014249,2]
[391310235,1760503832078,-1000.0,0.00014249,2]
[391310236,1760503832087,-1000.0,0.00014249,2]
[391310237,1760503832096,-1000.0,0.00014249,2]
[391310238,1760503832105,-1000.0,0.00014249,2]
[391310239,1760503832114,-462.00342318,0.00014249,2]
[391310240,1760503832127,-37.99657682,0.00014249,2]
[391310241,1760503832136,-500.0,0.00014249,2]
[391310242,1760503832144,-500.0,0.00014249,2]
[391310243,1760503832153,-500.0,0.00014249,2]
[391310244,1760503832162,-500.0,0.00014249,2]
[391310245,1760503832171,-500.0,0.00014249,2]
[391310246,1760503832180,-500.0,0.00014249,2]
[391310247,1760503832189,-167.94019275,0.00014249,2]
[391310248,1760503832197,-500.0,0.00014249,2]
[391310249,1760503832206,-2000.0,0.00014249,2]
[391310250,1760503832215,-500.0,0.00014249,2]
[391310251,1760503832224,-500.0,0.00014249,2]
[391310252,1760503832233,-2000.0,0.00014249,2]
[391310253,1760503832242,-154.12595973,0.00014249,2]
[391310254,1760503832253,-500.0,0.00014249,2]
[391310255,1760503832262,-500.0,0.00014249,2]
[391310256,1760503832272,-2000.0,0.00014249,2]
[391310257,1760503832281,-250.0,0.00014249,2]
[391310258,1760503832293,-500.0,0.00014249,2]
[391310259,1760503832302,-500.0,0.00014249,2]
[391310260,1760503832311,-2000.0,0.00014249,2]
[391310261,1760503832320,-250.0,0.00014249,2]
[391310262,1760503832329,-2000.0,0.00014249,2]
[391310263,1760503832339,-500.0,0.00014249,2]
[391310264,1760503832349,-250.0,0.00014249,2]
[391310265,1760503832359,-500.0,0.00014249,2]
[391310266,1760503832368,-2000.0,0.00014249,2]
[391310267,1760503832377,-250.0,0.00014249,2]
[391310268,1760503832386,-500.0,0.00014249,2]
[391310269,1760503832396,-161.52473107,0.00014249,2]
[391310270,1760503832405,-500.0,0.00014249,2]
[391310271,1760503832414,-2000.0,0.00014249,2]
[391310272,1760503832424,-1000.0,0.00014249,2]
[391310273,1760503832433,-250.0,0.00014249,2]
[391310274,1760503832443,-500.0,0.00014249,2]
[391310275,1760503832452,-500.0,0.00014249,2]
[391310276,1760503832461,-2000.0,0.00014249,2]
[391310277,1760503832471,-1000.0,0.00014249,2]
[391310278,1760503832480,-250.0,0.00014249,2]
[391310279,1760503832489,-500.0,0.00014249,2]
[391310280,1760503832499,-2000.0,0.00014249,2]
[391310281,1760503832509,-575.47880964,0.00014249,2]
[391310282,1760503832518,-337.04050925,0.00014249,2]
[391310283,1760503832528,-250.0,0.00014249,2]
[391310284,1760503832537,-2000.0,0.00014249,2]
[391310285,1760503832546,-250.0,0.00014249,2]
[391310286,1760503832556,-2000.0,0.00014249,2]
[391310287,1760503832565,-250.0,0.00014249,2]
[391310288,1760503832574,-250.0,0.00014249,2]
[391310289,1760503832584,-151.0,0.00014249,2]
[391310290,1760503832593,-239.73402005,0.00014249,2]
[391310291,1760503832602,-282.35455025,0.00014249,2]
[391310292,1760503832611,-500.0,0.00014249,2]
[391310293,1760503832620,-500.0,0.00014249,2]
[391310294,1760503832629,-500.0,0.00014249,2]